bitfinex/quotes_SOLUSD_20251002
["timestamp","ask_amount","ask_price","bid_price","bid_amount"]
[1759407873981,5.11774165,226.36,226.31,20.8]
[1759407874790,202.29681972,226.4,226.31,20.8]
[1759407874791,200.0,226.4,226.32,30.94]
[1759407875097,200.0,226.4,226.35,20.8]
[1759407875297,200.0,226.4,226.36,51.74]
[1759407876673,200.0,226.4,226.36,20.8]
[1759407876997,200.0,226.4,226.34,4.4181141]
[1759407877202,0.7,226.39,226.35,30.94]
[1759407877498,0.7,226.38,226.35,30.94]
[1759407878579,200.0,226.4,226.35,20.8]
[1759407878785,200.0,226.4,226.36,30.94]
[1759407879808,200.0,226.4,226.3,10.87647521]
[1759407879809,5.30263558,226.39,226.27,10.87647521]
[1759407880003,2.99681972,226.38,226.28,30.94]
[1759407880210,0.7,226.37,226.31,20.8]
[1759407880427,0.7,226.36,226.31,20.8]
[1759407880722,0.7,226.35,226.28,30.94]
[1759407881015,0.7,226.34,226.24,1e-08]
[1759407881190,0.7,226.34,226.25,30.94]
[1759407881510,0.7,226.33,226.28,20.8]
[1759407881710,0.7,226.32,226.28,20.8]
[1759407882705,30.94,226.36,226.3,20.8]
[1759407882892,5.11737222,226.38,226.29,51.74]
[1759407883401,4.41737222,226.38,226.29,51.74]
[1759407883584,0.7,226.37,226.29,51.74]
[1759407883980,5.11756877,226.37,226.3,4.41891294]
[1759407885010,0.7,226.37,226.32,20.8]
[1759407885508,0.7,226.36,226.32,20.8]
[1759407887414,0.7,226.35,226.32,20.8]
[1759407888401,5.11757326,226.37,226.32,20.8]
[1759407888602,0.7,226.36,226.32,20.8]
[1759407889012,4.41757326,226.37,226.32,20.8]
[1759407889218,0.7,226.36,226.32,20.8]
[1759407889408,4.41757326,226.37,226.32,20.8]
[1759407889409,0.7,226.35,226.32,20.8]
[1759407889716,0.7,226.34,226.32,20.8]
[1759407890019,5.11757326,226.37,226.32,20.8]
[1759407890219,0.7,226.36,226.32,20.8]
[1759407890594,0.7,226.35,226.32,20.8]
[1759407890796,0.7,226.37,226.32,20.8]
[1759407891098,0.7,226.36,226.32,20.8]
[1759407892194,0.7,226.38,226.32,25.2184877]
[1759407892394,5.1173554,226.38,226.32,20.8]
[1759407892592,0.7,226.38,226.32,25.2183946]
[1759407892988,200.0,226.4,226.32,25.2183946]
[1759407892989,200.0,226.4,226.34,20.8]
[1759407893199,200.7,226.4,226.34,20.8]
[1759407893623,0.7,226.39,226.29,4.41910822]
[1759407893926,0.7,226.38,226.31,20.8]
[1759407894502,0.7,226.38,226.32,4.41852244]
[1759407895120,200.72,226.4,226.32,4.41852244]
[1759407895412,0.72,226.39,226.32,4.41852244]
[1759407895793,0.72,226.39,226.33,30.94]
[1759407896214,0.72,226.39,226.33,35.35830272]
[1759407897416,200.0,226.4,226.33,35.35830272]
[1759407897790,0.72,226.39,226.34,30.94]
[1759407897986,0.72,226.38,226.3,51.74]
[1759407898190,0.72,226.37,226.3,56.15874868]
[1759407899201,0.72,226.37,226.31,30.94]
[1759407900227,0.72,226.37,226.31,35.35855557]
[1759407900594,4.41715623,226.39,226.31,35.35855557]
[1759407900793,0.72,226.38,226.31,35.35855557]
[1759407901103,0.72,226.37,226.26,11.0489275]
[1759407901304,31.66,226.36,226.28,20.8]
[1759407901623,0.72,226.35,226.28,20.8]
[1759407902292,0.72,226.35,226.29,4.41910822]
[1759407902498,36.07757665,226.37,226.29,4.41910822]
[1759407902910,35.35757665,226.37,226.29,4.41910822]
[1759407903109,0.72,226.36,226.29,4.41910822]
[1759407903701,5.13774789,226.36,226.29,4.41910822]
[1759407904311,5.13774789,226.36,226.29,35.35910822]
[1759407904689,0.72,226.35,226.28,20.8]
[1759407904803,4.41774789,226.36,226.27,20.8]
[1759407904804,3.01681972,226.34,226.27,20.8]
[1759407905004,0.72,226.33,226.27,20.8]
[1759407905223,0.72,226.32,226.27,20.8]
[1759407905404,0.72,226.31,226.27,20.8]
[1759407905729,5.13907293,226.3,226.27,20.8]
[1759407905897,0.72,226.29,226.27,20.8]
[1759407906622,0.72,226.29,226.24,30.94000001]
[1759407906824,0.72,226.28,226.24,1e-08]
[1759407907514,2.19245287,226.28,226.24,1e-08]
[1759407907714,4.41949882,226.27,226.24,1e-08]
[1759407908007,16.94069876,226.27,226.24,1e-08]
[1759407908202,0.72,226.26,226.24,1e-08]
[1759407909635,4.4198895,226.25,226.24,1e-08]
[1759407909831,30.94,226.28,226.24,1e-08]
[1759407910005,0.72,226.26,226.24,1e-08]
[1759407910407,0.72,226.25,226.24,1e-08]
[1759407911628,5.1398895,226.25,226.24,1e-08]
[1759407912718,17.48881758,226.25,226.24,1e-08]
[1759407913512,20.8,226.22,226.07,0.2]
[1759407913818,1.47245287,226.16,226.09,21.0]
[1759407914137,0.72,226.15,226.09,21.0]
[1759407914433,0.72,226.15,226.09,0.2]
[1759407915018,0.72,226.15,226.14,0.2]
[1759407916207,5.1418439,226.15,226.14,0.2]
[1759407918650,30.96,226.17,226.14,0.2]
[1759407918939,31.68,226.17,226.14,0.2]
[1759407919321,30.96,226.17,226.14,0.2]
[1759407919521,22.09089861,226.34,226.14,0.2]
[1759407919721,0.72,226.24,226.14,0.2]
[1759407920541,0.72,226.24,226.17,20.8]
[1759407920717,5.14015128,226.24,226.17,20.8]
[1759407921031,35.39994026,226.25,226.17,20.8]
[1759407921210,36.11994026,226.25,226.17,20.8]
[1759407922232,30.98,226.25,226.17,20.8]
[1759407922415,30.98,226.25,226.18,4.4212574]
[1759407922416,31.7,226.25,226.18,4.4212574]
[1759407922616,31.7,226.25,226.19,20.8]
[1759407923011,36.11992367,226.25,226.19,20.8]
[1759407923222,5.13992367,226.25,226.19,20.8]
[1759407924746,0.66,226.24,226.15,20.8]
[1759407924953,0.66,226.23,226.15,25.2218439]
[1759407925131,0.66,226.22,226.14,0.2]
[1759407925334,0.66,226.22,226.14,4.62193502]
[1759407925530,0.66,226.21,226.14,4.62193502]
[1759407926325,0.66,226.21,226.14,25.42193502]
[1759407926552,30.98,226.23,226.14,0.2]
[1759407926553,0.66,226.2,226.14,0.2]
[1759407926929,0.66,226.2,226.14,21.0]
[1759407927157,0.66,226.19,226.14,0.2]
[1759407927344,0.66,226.18,226.14,0.2]
[1759407927531,0.66,226.2,226.14,4.62198336]
[1759407929234,5.08087581,226.2,226.14,0.2]
[1759407929657,0.66,226.2,226.14,25.42195944]
[1759407930835,5.0808889,226.2,226.14,21.0]
[1759407931036,0.66,226.19,226.14,0.2]
[1759407932029,0.66,226.18,226.14,0.2]
[1759407932234,4.42115575,226.19,226.14,0.2]
[1759407932436,5.08115575,226.19,226.14,0.2]
[1759407932670,2.3080279,226.2,226.14,4.62202106]
[1759407932840,0.66,226.22,226.14,4.62202106]
[1759407933341,0.66,226.22,226.14,15.67711967]
[1759407933554,4.42054511,226.22,226.14,4.62202106]
[1759407933768,0.66,226.21,226.14,4.62202106]
[1759407934139,5.08069724,226.21,226.14,4.62202106]
[1759407934951,0.66,226.21,226.16,20.8]
[1759407935739,0.66,226.21,226.14,4.62202106]
[1759407936157,0.66,226.21,226.17,20.8]
[1759407936958,4.42045116,226.23,226.17,20.8]
[1759407937142,0.66,226.21,226.17,20.8]
[1759407937547,0.66,226.2,226.17,20.8]
[1759407939539,0.66,226.2,226.17,25.2214458]
[1759407940058,5.08045116,226.23,226.17,25.2214458]
[1759407940467,11.04940261,226.26,226.17,25.2214458]
[1759407940468,0.66,226.26,226.17,25.2214458]
[1759407940638,0.66,226.25,226.17,25.2214458]
[1759407942211,0.66,226.29,226.17,36.27507802]
[1759407942469,0.66,226.28,226.17,36.27507802]
[1759407942762,0.66,226.27,226.17,36.27507802]
[1759407944558,5.0795038,226.27,226.17,36.27507802]
[1759407946175,5.0795038,226.27,226.17,67.23507802]
[1759407948751,0.66,226.26,226.17,25.2214458]
[1759407948957,1.47245287,226.28,226.17,56.1814458]
[1759407948958,0.66,226.25,226.17,56.1814458]
[1759407949165,0.66,226.24,226.17,25.2214458]
[1759407950360,30.96,226.26,226.19,20.8]
[1759407950567,31.62,226.26,226.19,20.8]
[1759407950766,0.66,226.25,226.19,20.8]
[1759407951170,5.07990943,226.25,226.19,20.8]
[1759407954267,15.46963318,226.25,226.14,0.2]
[1759407954572,0.66,226.24,226.18,20.8]
[1759407954772,0.66,226.23,226.18,20.8]
[1759407954973,0.66,226.22,226.18,20.8]
[1759407955480,4.42043201,226.23,226.18,20.8]
[1759407955685,5.08043201,226.23,226.18,20.8]
[1759407955984,0.66,226.22,226.18,20.8]
[1759407956586,5.08052268,226.22,226.18,20.8]
[1759407956792,0.66,226.21,226.14,21.0]
[1759407956976,0.66,226.2,226.14,21.0]
[1759407957169,1.47245287,226.21,226.14,21.0]
[1759407957170,0.66,226.19,226.14,21.0]
[1759407957485,0.66,226.18,226.14,0.2]
[1759407957690,1.47245287,226.16,226.14,0.2]
[1759407957894,2.13245287,226.15,226.14,0.2]
[1759407958772,6.55429677,226.15,226.14,0.2]
[1759407958965,5.0818439,226.15,226.14,0.2]
[1759407962401,0.66,226.15,226.14,0.2]
[1759407962712,4.42106675,226.19,226.14,0.2]
[1759407962874,35.38106675,226.19,226.14,0.2]
[1759407963381,5.08085439,226.21,226.14,4.62199306]
[1759407963685,0.66,226.22,226.14,25.42199306]
[1759407964003,4.41983184,226.26,226.14,25.42199306]
[1759407964004,0.66,226.21,226.14,25.42199306]
[1759407964381,1.47245287,226.25,226.14,25.42199306]
[1759407964382,0.66,226.24,226.14,25.42199306]
[1759407964796,0.66,226.24,226.14,36.47709167]
[1759407965179,31.66,226.23,226.14,25.42199306]
[1759407965380,4.42067105,226.21,226.14,25.42199306]
[1759407966609,5.08049651,226.22,226.14,4.62199306]
[1759407968472,0.66,226.21,226.14,0.2]
[1759407968886,2.96229195,226.21,226.14,0.2]
[1759407969278,2.30229195,226.2,226.14,0.2]
[1759407969790,0.66,226.19,226.14,0.2]
[1759407970197,2.30229195,226.17,226.14,0.2]
[1759407970500,2.30229195,226.15,226.14,0.2]
[1759407970682,4.4218439,226.15,226.14,0.2]
[1759407970881,5.0818439,226.15,226.14,0.2]
[1759407971288,7.38413585,226.15,226.14,0.2]
[1759407972987,9.69266074,226.15,226.14,0.2]
[1759407974718,7.39036879,226.15,226.14,0.2]
[1759407974879,9.69266074,226.15,226.14,0.2]
[1759407975079,7.39036879,226.15,226.14,0.2]
[1759407979993,2.30852489,226.15,226.14,0.2]
[1759407982289,6.73036879,226.15,226.14,0.2]
[1759407982506,2.30852489,226.15,226.14,0.2]
[1759407984117,132.9,226.16,226.14,0.2]
[1759407984296,133.61,226.23,226.14,4.62203111]
[1759407984498,31.0,226.22,226.14,4.62203111]
[1759407985220,31.0,226.22,226.14,15.67712972]
[1759407986127,36.13049902,226.22,226.14,15.67712972]
[1759407986896,31.71,226.22,226.14,15.67712972]
[1759407987323,31.67647521,226.29,226.17,20.8]
[1759407987324,4.41930351,226.28,226.17,20.8]
[1759407987629,0.71,226.32,226.18,31.67647521]
[1759407987799,200.71,226.3,226.18,31.67647521]
[1759407987997,200.71,226.3,226.22,20.8]
[1759407989016,236.14893535,226.3,226.22,20.8]
[1759407989194,231.73,226.3,226.22,20.8]
[1759407990011,231.73,226.3,226.23,4.42028024]
[1759407990403,231.73,226.3,226.23,15.47098085]
[1759407991123,200.0,226.3,226.23,36.27098085]
[1759407991418,200.0,226.3,226.27,20.8]
[1759407992206,200.0,226.3,226.28,4.41930351]
[1759407993000,200.0,226.3,226.29,10.87647521]
[1759407993410,200.0,226.3,226.29,14.48987526]
[1759407994333,200.0,226.3,226.29,18.90898348]
[1759407994504,200.0,226.3,226.29,49.92898348]
[1759407995842,200.0,226.3,226.29,63.42770878]
[1759407996830,200.0,226.3,226.29,4.41910822]
[1759408000111,200.0,226.3,226.29,20.8]
[1759408000307,200.0,226.3,226.29,51.8]
[1759408000731,200.0,226.3,226.27,20.8]
[1759408000946,200.71,226.3,226.28,31.0]
[1759408001313,200.0,226.3,226.29,10.87647521]
[1759408002343,200.0,226.3,226.29,15.29558343]
[1759408002520,153.07806882,226.3,226.29,15.29558343]
[1759408003447,129.24549484,226.3,226.29,15.29558343]
[1759408007818,129.95549484,226.3,226.29,46.27558343]
[1759408008128,129.24549484,226.3,226.29,46.27558343]
[1759408008939,129.95549484,226.3,226.29,56.19910822]
[1759408009138,129.95549484,226.3,226.29,25.21910822]
[1759408009437,129.95549484,226.3,226.29,56.19910822]
[1759408009822,129.24549484,226.3,226.29,56.19910822]
[1759408010245,129.24549484,226.3,226.29,67.07558343]
[1759408010429,129.95549484,226.3,226.29,67.07558343]
[1759408010740,129.24549484,226.3,226.29,67.07558343]
[1759408013341,129.95549484,226.3,226.29,56.19910822]
[1759408013918,129.95549484,226.3,226.29,25.21910822]
[1759408014119,129.24549484,226.3,226.29,56.17910822]
[1759408014429,129.24549484,226.3,226.29,67.05558343]
[1759408015024,129.91549484,226.3,226.29,25.21910822]
[1759408015329,129.91549484,226.3,226.29,56.17910822]
[1759408018651,129.91549484,226.3,226.29,25.21910822]
[1759408018834,129.91549484,226.3,226.27,51.76]
[1759408019155,0.67,226.29,226.27,51.76]
[1759408019346,0.67,226.28,226.27,51.76]
[1759408019849,0.67,226.28,226.27,56.17949882]
[1759408021355,129.24549484,226.3,226.27,56.17949882]
[1759408021555,129.24549484,226.3,226.27,67.22824589]
[1759408021731,129.91549484,226.3,226.27,67.22824589]
[1759408022751,0.67,226.29,226.27,67.22824589]
[1759408023760,0.67,226.29,226.27,36.26824589]
[1759408024064,0.67,226.29,226.28,30.96]
[1759408024454,0.67,226.29,226.28,35.37930351]
[1759408024785,0.67,226.29,226.28,20.8]
[1759408024981,0.67,226.29,226.22,3.49794666]
[1759408025259,0.67,226.28,226.23,30.96]
[1759408025463,0.67,226.27,226.26,20.8]
[1759408026654,0.67,226.27,226.26,25.21969415]
[1759408027235,0.67,226.27,226.26,20.8]
[1759408028356,133.66446478,226.3,226.29,20.8]
[1759408028357,129.24549484,226.3,226.29,20.8]
[1759408028936,129.91549484,226.3,226.29,20.8]
[1759408029249,129.91549484,226.3,226.29,30.96]
[1759408029961,129.91549484,226.3,226.28,20.8]
[1759408030264,0.67,226.29,226.25,51.76]
[1759408030440,129.24549484,226.3,226.25,51.76]
[1759408030441,0.67,226.28,226.25,51.76]
[1759408030640,0.67,226.27,226.26,4.41969415]
[1759408031944,129.24549484,226.3,226.26,4.41969415]
[1759408032172,129.24549484,226.3,226.29,20.8]
[1759408032532,129.91549484,226.3,226.29,20.8]
[1759408032958,129.91549484,226.3,226.28,56.17929681]
[1759408033144,0.67,226.29,226.28,56.17929681]
[1759408033857,0.67,226.29,226.28,25.21929681]
[1759408034040,0.67,226.29,226.28,56.17929681]
[1759408035463,129.24549484,226.3,226.28,56.17929681]
[1759408036374,129.91549484,226.3,226.28,56.17929681]
[1759408037975,0.67,226.29,226.27,20.8]
[1759408038174,129.24549484,226.3,226.28,30.96]
[1759408038772,129.91549484,226.3,226.28,30.96]
[1759408039563,129.91549484,226.3,226.29,4.41910822]
[1759408040574,129.91549484,226.3,226.29,25.21910822]
[1759408040873,129.91549484,226.3,226.29,56.17910822]
[1759408041784,129.91549484,226.3,226.29,20.8]
[1759408041954,129.91549484,226.3,226.29,51.76]
[1759408043252,129.91549484,226.3,226.29,30.96]
[1759408044057,129.91549484,226.3,226.27,4.41948541]
[1759408044265,0.71,226.29,226.28,30.96]
[1759408044758,0.71,226.29,226.27,4.41948541]
[1759408044958,0.71,226.29,226.28,30.96]
[1759408045790,0.71,226.29,226.28,130.96]
[1759408045956,129.24549484,226.3,226.28,130.96]
[1759408046468,129.24549484,226.3,226.29,4.41910822]
[1759408046662,129.95549484,226.3,226.29,4.41910822]
[1759408050275,129.24549484,226.3,226.29,4.41910822]
[1759408050488,129.24549484,226.3,226.29,56.17910822]
[1759408053875,129.24549484,226.3,226.29,20.8]
[1759408054084,129.95549484,226.3,226.29,51.76]
[1759408054271,129.95549484,226.3,226.29,20.8]
[1759408056085,165.33440778,226.3,226.29,20.8]
[1759408058381,165.33440778,226.3,226.28,100.0]
[1759408058585,0.71,226.29,226.28,100.0]
[1759408059394,5.12910822,226.29,226.28,100.0]
[1759408064889,6.60135564,226.29,226.28,100.0]
[1759408067309,6.60135564,226.29,226.28,9.31761433]
[1759408067310,30.73783085,226.29,226.28,9.31761433]
[1759408067474,10.87647521,226.28,226.17,0.72]
[1759408067669,39.7446673,226.29,226.17,0.72]
[1759408067670,12.34872263,226.26,226.17,0.72]
[1759408067992,31.67,226.25,226.17,0.72]
[1759408068699,30.96,226.24,226.17,0.72]
[1759408069194,31.67,226.24,226.17,0.72]
[1759408069398,4.42028024,226.23,226.17,0.72]
[1759408069591,30.96,226.22,226.17,0.72]
[1759408069782,30.96,226.22,226.18,0.72]
[1759408071397,31.67,226.22,226.18,0.72]
[1759408071974,36.09048333,226.22,226.18,0.72]
[1759408072782,0.71,226.21,226.16,5.14145672]
[1759408073296,0.71,226.21,226.17,0.72]
[1759408073601,35.38048333,226.22,226.17,5.14142029]
[1759408073602,30.96,226.22,226.17,5.14142029]
[1759408073810,31.67,226.22,226.17,5.14142029]
[1759408075202,31.67,226.22,226.18,0.66]
[1759408075805,30.96,226.22,226.16,5.08164839]
[1759408076113,0.67,226.21,226.16,5.08164839]
[1759408076415,0.67,226.21,226.17,0.66]
[1759408077480,30.96,226.22,226.18,0.66]
[1759408077681,0.67,226.21,226.16,5.08164839]
[1759408077895,0.67,226.21,226.16,0.66]
[1759408077896,0.67,226.2,226.16,0.66]
[1759408078112,31.63,226.22,226.17,21.46]
[1759408078405,31.63,226.22,226.18,0.66]
[1759408078704,31.63,226.22,226.19,20.8]
[1759408078890,133.57,226.25,226.2,0.66]
[1759408079091,31.63,226.27,226.2,0.66]
[1759408079301,0.67,226.27,226.2,0.66]
[1759408079511,0.67,226.27,226.21,0.66]
[1759408079836,0.67,226.27,226.21,5.08057628]
[1759408080981,142.59974248,226.3,226.21,5.08057628]
[1759408080982,131.55220682,226.3,226.24,20.8]
[1759408081185,129.24549484,226.3,226.25,0.66]
[1759408081607,129.24549484,226.3,226.26,20.8]
[1759408081809,129.24549484,226.3,226.29,20.8]
[1759408082027,129.24549484,226.3,226.29,21.46]
[1759408082191,129.24549484,226.3,226.29,52.42]
[1759408082392,129.24549484,226.3,226.29,51.76]
[1759408083315,129.24549484,226.3,226.29,52.42]
[1759408084600,129.24549484,226.3,226.29,51.76]
[1759408085007,129.24549484,226.3,226.29,52.42]
[1759408085502,129.24549484,226.3,226.29,51.76]
[1759408085701,129.24549484,226.3,226.28,30.98]
[1759408085918,129.24549484,226.3,226.28,30.96]
[1759408086707,129.24549484,226.3,226.27,20.8]
[1759408086926,129.24549484,226.3,226.27,52.42]
[1759408087100,129.24549484,226.3,226.27,31.62]
[1759408087293,129.24549484,226.3,226.29,20.8]
[1759408090621,129.91549484,226.3,226.25,51.76]
[1759408090801,129.91549484,226.3,226.26,0.66]
[1759408091609,129.91549484,226.3,226.27,4.41949882]
[1759408092523,129.91549484,226.3,226.26,0.66]
[1759408092724,0.67,226.29,226.23,21.46]
[1759408093022,0.67,226.29,226.27,20.8]
[1759408093235,0.67,226.29,226.28,20.8]
[1759408093399,0.67,226.29,226.24,0.66]
[1759408093400,133.66446083,226.3,226.27,20.8]
[1759408093600,164.62446083,226.3,226.28,20.8]
[1759408094029,0.67,226.29,226.28,20.8]
[1759408094628,0.67,226.29,226.25,51.76]
[1759408094837,0.67,226.28,226.27,20.8]
[1759408097505,5.08930351,226.28,226.23,20.8]
[1759408097704,5.08930351,226.28,226.23,52.42]
[1759408098536,0.67,226.28,226.24,0.66]
[1759408100527,5.08932767,226.28,226.23,51.76]
[1759408100712,0.67,226.27,226.23,52.42]
[1759408100913,4.41932767,226.28,226.24,0.66]
[1759408101214,0.67,226.28,226.24,0.66]
[1759408103037,5.08931221,226.28,226.24,0.66]
[1759408103526,0.7,226.27,226.23,55.84027112]
[1759408103725,0.7,226.26,226.23,55.84027112]
[1759408103925,0.7,226.26,226.23,51.42]
[1759408104139,5.07931221,226.28,226.23,51.42]
[1759408104433,0.66,226.27,226.23,55.84021819]
[1759408105046,162.51231893,226.3,226.23,55.84021819]
[1759408105240,0.66,226.29,226.23,55.84021819]
[1759408106036,0.66,226.29,226.23,56.51021819]
[1759408106544,0.66,226.28,226.23,55.84021819]
[1759408107032,0.66,226.28,226.24,0.67]
[1759408107236,0.66,226.28,226.23,55.84021819]
[1759408107540,131.55231893,226.3,226.24,0.67]
[1759408107738,129.24549484,226.3,226.24,0.67]
[1759408109126,129.24549484,226.3,226.27,20.8]
[1759408109440,129.24549484,226.3,226.29,20.8]
[1759408110047,129.90549484,226.3,226.29,20.8]
[1759408110758,133.82440778,226.3,226.29,20.8]
[1759408111128,133.82440778,226.3,226.26,20.8]
[1759408111319,0.66,226.29,226.26,20.8]
[1759408113040,128.74549484,226.3,226.26,25.21963834]
[1759408113243,129.40549484,226.3,226.26,25.21963834]
[1759408114741,128.74549484,226.3,226.27,0.67]
[1759408114921,128.74549484,226.3,226.26,25.21963834]
[1759408115124,128.74549484,226.3,226.26,5.08963834]
[1759408115334,128.74549484,226.3,226.27,20.8]
[1759408115548,128.74549484,226.3,226.27,51.76]
[1759408115848,128.74549484,226.3,226.27,56.17939685]
[1759408116148,0.66,226.29,226.27,56.17939685]
[1759408116448,128.74549484,226.3,226.27,56.17939685]
[1759408116646,129.40549484,226.3,226.27,56.17939685]
[1759408119340,0.66,226.29,226.27,56.17939685]
[1759408120150,128.74549484,226.3,226.27,56.17939685]
[1759408120348,129.40549484,226.3,226.27,56.17939685]
[1759408120550,129.40549484,226.3,226.27,51.76]
[1759408120750,0.66,226.29,226.27,51.76]
[1759408122149,0.66,226.29,226.27,56.17946703]
[1759408122353,129.40549484,226.3,226.27,56.17946703]
[1759408122553,129.40549484,226.3,226.28,0.67]
[1759408122554,128.74549484,226.3,226.28,0.67]
[1759408122761,128.74549484,226.3,226.27,56.17946703]
[1759408123141,129.40549484,226.3,226.27,56.17946703]
[1759408124366,129.40549484,226.3,226.27,35.37946703]
[1759408124672,129.40549484,226.3,226.29,20.8]
[1759408125347,128.74549484,226.3,226.29,52.43]
[1759408125552,128.74549484,226.3,226.29,56.17910822]
[1759408125760,128.74549484,226.3,226.29,20.8]
[1759408125952,129.40549484,226.3,226.29,20.8]
[1759408126157,128.74549484,226.3,226.29,20.8]
[1759408127163,129.40549484,226.3,226.29,20.8]
[1759408127357,128.74549484,226.3,226.29,20.8]
[1759408128473,129.40549484,226.3,226.29,20.8]
[1759408128849,128.74549484,226.3,226.29,20.8]
[1759408130389,129.40549484,226.3,226.29,20.8]
[1759408130568,128.74549484,226.3,226.29,20.8]
[1759408130770,129.40549484,226.3,226.29,20.8]
[1759408131095,75.68866391,226.3,226.29,63.28647521]
[1759408131394,0.1,226.47,226.29,63.28647521]
[1759408131395,0.66,226.44,226.37,20.8]
[1759408131578,0.66,226.44,226.38,31.26]
[1759408131772,0.66,226.46,226.41,20.8]
[1759408131981,0.66,226.45,226.41,52.06]
[1759408132588,0.66,226.44,226.41,52.06]
[1759408133160,0.66,226.44,226.43,20.8]
[1759408134166,5.07619822,226.44,226.38,20.8]
[1759408134372,0.68,226.43,226.38,52.04]
[1759408134591,0.68,226.42,226.38,52.04]
[1759408134795,0.68,226.41,226.38,52.04]
[1759408135778,4.41605931,226.45,226.38,52.04]
[1759408136099,0.68,226.4,226.38,52.04]
[1759408136286,4.41605931,226.45,226.31,10.87647521]
[1759408136287,0.68,226.39,226.37,31.24]
[1759408136481,0.68,226.38,226.35,31.24]
[1759408136684,0.68,226.37,226.3,13.26641165]
[1759408136889,0.68,226.36,226.31,31.24]
[1759408137069,0.68,226.35,226.31,31.24]
[1759408137269,0.68,226.35,226.34,20.8]
[1759408139179,5.09793682,226.35,226.34,20.8]
[1759408139375,5.09793682,226.35,226.23,4.42028024]
[1759408139376,16.14277887,226.35,226.23,4.42028024]
[1759408139574,16.14277887,226.35,226.24,35.65989134]
[1759408139575,4.41832722,226.33,226.24,35.65989134]
[1759408139785,0.68,226.32,226.28,20.8]
[1759408140376,0.68,226.34,226.28,20.8]
[1759408141230,0.68,226.34,226.31,20.8]
[1759408141698,0.68,226.33,226.31,20.8]
[1759408142067,0.68,226.37,226.32,4.41852244]
[1759408142265,35.44801634,226.47,226.34,20.8]
[1759408142266,0.68,226.36,226.34,20.8]
[1759408142474,0.68,226.35,226.34,20.8]
[1759408143592,0.68,226.35,226.25,5.40770786]
[1759408143593,0.68,226.35,226.24,11.0500713]
[1759408143809,0.68,226.34,226.28,20.8]
[1759408143974,0.68,226.33,226.28,52.06]
[1759408145120,0.68,226.32,226.28,56.47928076]
[1759408145424,0.68,226.31,226.28,56.47928076]
[1759408146205,10.87647521,226.38,226.28,56.47928076]
[1759408146424,0.68,226.37,226.28,56.47928076]
[1759408146725,11.04309506,226.39,226.28,56.47928076]
[1759408146726,0.68,226.36,226.28,56.47928076]
[1759408147023,0.68,226.35,226.28,56.47928076]
[1759408147221,0.68,226.34,226.23,13.26993254]
[1759408147402,0.68,226.33,226.24,31.24]
[1759408147599,0.68,226.32,226.24,52.04]
[1759408148219,0.68,226.32,226.24,56.45989124]
[1759408148399,4.41856767,226.32,226.24,56.45989124]
[1759408148603,0.68,226.31,226.24,20.8]
[1759408148796,0.68,226.31,226.25,31.26]
[1759408149127,0.68,226.3,226.25,31.26]
[1759408149305,0.68,226.29,226.25,31.26]
[1759408150198,148.19538259,226.31,226.25,31.26]